bitfinex/quotes_SOLUSD_20250602
["timestamp","ask_amount","ask_price","bid_price","bid_amount"]
[1748861052848,58.39559162,154.09,154.04,44.3574837]
[1748861053468,11.86584661,154.07,154.03,18.35793522]
[1748861053666,11.86584661,154.05,154.0,88.8]
[1748861053868,11.86584661,154.05,154.01,11.86584661]
[1748861054046,11.86584661,154.05,154.01,18.35869235]
[1748861054378,18.35725352,154.05,154.01,18.35869235]
[1748861054578,11.86584661,154.05,154.01,6.49284574]
[1748861054789,30.51549547,154.04,153.99,11.86584661]
[1748861055072,51.88584661,154.03,153.99,37.86584661]
[1748861055239,30.51549547,154.02,153.97,18.36061831]
[1748861055671,11.86584661,154.01,153.97,18.36061831]
[1748861055975,51.88584661,154.0,153.96,6.49514351]
[1748861056272,62.36584661,154.0,153.96,6.49514351]
[1748861056569,11.86584661,153.98,153.95,26.0]
[1748861057151,11.86584661,153.98,153.93,18.36213237]
[1748861057386,40.02,153.97,153.94,26.0]
[1748861057970,11.86584661,153.96,153.92,11.86584661]
[1748861058174,11.86584661,153.96,153.92,44.36266607]
[1748861058387,11.86584661,153.96,153.92,18.36266607]
[1748861058751,11.86584661,153.96,153.93,26.0]
[1748861059155,18.56400726,153.96,153.93,26.0]
[1748861059575,12.0083856,153.99,153.94,18.56400726]
[1748861059894,58.68964886,153.98,153.95,18.56400726]
[1748861060170,58.68964886,153.98,153.96,6.49519355]
[1748861061065,18.64964886,153.98,153.96,6.49519355]
[1748861061377,40.04,153.97,153.95,6.49561545]
[1748861061573,58.60400726,153.97,153.95,6.49561545]
[1748861061885,18.56400726,153.96,153.95,6.49561545]
[1748861062955,18.56400726,153.96,153.94,6.49589271]
[1748861065070,58.60400726,153.97,153.94,6.49589271]
[1748861065900,37.21365612,153.96,153.93,6.49640039]
[1748861066076,18.56400726,153.95,153.93,6.49640039]
[1748861066264,40.04,153.94,153.93,6.49640039]
[1748861067071,40.04,153.94,153.92,6.49688149]
[1748861067806,40.04,153.94,153.92,25.06088875]
[1748861068395,40.04,153.94,153.92,6.49688149]
[1748861068697,58.60400726,153.94,153.92,6.49688149]
[1748861068996,40.04,153.94,153.92,6.49688149]
[1748861069797,58.60400726,153.94,153.92,6.49688149]
[1748861069995,18.56400726,153.93,153.92,6.49688149]
[1748861070492,58.60400726,153.94,153.92,6.49688149]
[1748861071187,37.21365612,153.93,153.88,6.49857031]
[1748861071499,18.56400726,153.9,153.88,6.49857031]
[1748861071680,40.04,153.89,153.88,6.49857031]
[1748861072507,40.04,153.89,153.88,25.06257757]
[1748861075595,37.21365612,153.93,153.88,25.06257757]
[1748861075793,40.04,153.92,153.88,25.06257757]
[1748861076701,40.04,153.92,153.89,18.56400726]
[1748861076907,40.04,153.92,153.9,6.49772579]
[1748861077711,12.119,153.95,153.91,18.56400726]
[1748861077893,12.119,153.95,153.9,22.74204027]
[1748861077894,40.04,153.94,153.92,18.56400726]
[1748861079589,40.04,153.94,153.93,6.49645942]
[1748861081205,30.68300726,153.95,153.93,6.49645942]
[1748861081395,40.04,153.94,153.93,6.49645942]
[1748861081903,40.04,153.94,153.92,6.49688149]
[1748861082277,40.04,153.93,153.92,6.49688149]
[1748861083184,40.04,153.93,153.91,6.49730361]
[1748861083383,40.04,153.93,153.91,25.06131087]
[1748861084783,40.04,153.93,153.91,6.49730361]
[1748861086105,40.04,153.93,153.91,25.06131087]
[1748861088504,40.04,153.93,153.91,6.49730361]
[1748861088690,58.60400726,153.93,153.91,6.49730361]
[1748861090183,40.04,153.93,153.91,6.49730361]
[1748861096395,40.04,153.93,153.91,25.06131087]
[1748861096610,40.04,153.93,153.91,6.49730361]
[1748861098011,40.04,153.93,153.91,5.99730361]
[1748861100425,18.56400726,153.92,153.9,6.49759217]
[1748861100633,40.02,153.91,153.9,6.49759217]
[1748861100803,58.58400726,153.91,153.9,6.49759217]
[1748861101214,40.02,153.91,153.9,6.49759217]
[1748861101422,58.58400726,153.91,153.9,6.49759217]
[1748861101619,40.02,153.91,153.9,6.49759217]
[1748861102444,40.02,153.91,153.88,6.49857031]
[1748861103317,10.46,153.97,153.93,26.0]
[1748861103512,40.02,153.96,153.95,18.56400726]
[1748861104106,10.46,153.97,153.95,18.56400726]
[1748861104406,50.48,153.97,153.95,18.56400726]
[1748861104598,50.48,153.97,153.96,6.49519355]
[1748861104825,10.46,153.97,153.96,6.49519355]
[1748861105128,50.48,153.97,153.95,6.49546098]
[1748861107608,40.02,153.96,153.95,6.49546098]
[1748861108021,10.46,153.97,153.95,25.05946824]
[1748861108230,12.0083856,153.99,153.96,18.56400726]
[1748861108410,52.0283856,153.99,153.98,18.56400726]
[1748861108612,12.0083856,153.99,153.98,18.56400726]
[1748861108821,12.0083856,153.99,153.97,18.56400726]
[1748861109010,12.0083856,153.99,153.98,6.49434991]
[1748861109722,12.0083856,153.99,153.96,25.05881691]
[1748861110599,52.0283856,153.99,153.96,25.05881691]
[1748861111102,52.0283856,153.99,153.97,18.56400726]
[1748861111506,52.0283856,153.99,153.97,6.49463766]
[1748861112635,70.59239286,153.99,153.95,107.36400726]
[1748861112811,52.0283856,153.99,153.96,18.56400726]
[1748861113011,40.02,153.98,153.96,18.56400726]
[1748861113215,40.02,153.98,153.97,6.4947717]
[1748861113713,52.0083856,153.99,153.97,6.4947717]
[1748861114812,52.0083856,153.99,153.97,25.05877896]
[1748861116526,52.0083856,153.99,153.98,18.56400726]
[1748861116707,10.46,154.01,153.98,25.05793945]
[1748861117113,40.0,154.0,153.98,25.05793945]
[1748861117538,10.46,154.01,153.98,25.05793945]
[1748861117743,50.46,154.01,153.98,25.05793945]
[1748861118443,50.46,154.01,153.99,18.56400726]
[1748861118941,50.46,154.01,153.99,25.05752425]
[1748861119243,10.46,154.01,153.99,25.05752425]
[1748861119742,40.0,154.02,154.0,18.56400726]
[1748861120312,41.79857275,154.05,154.0,18.56400726]
[1748861120520,40.0,154.04,154.0,18.56400726]
[1748861121326,40.0,154.04,154.01,6.49308486]
[1748861121939,1.5604,154.05,154.01,25.05709212]
[1748861122124,40.0,154.04,154.02,18.56400726]
[1748861123046,40.0,154.04,154.01,25.05709212]
[1748861123845,58.56400726,154.04,154.0,6.49334796]
[1748861124340,58.56400726,154.04,154.0,25.05735522]
[1748861125337,58.56400726,154.04,154.0,6.49334796]
[1748861127853,40.0,154.04,154.0,6.49334796]
[1748861128059,40.0,154.04,154.0,25.05735522]
[1748861132329,18.56400726,154.02,153.99,26.0]
[1748861132529,58.54400726,154.01,153.99,26.0]
[1748861133048,39.98,154.01,153.99,26.0]
[1748861134746,58.54400726,154.01,153.99,26.0]
[1748861137572,39.98,154.01,153.99,26.0]
[1748861137866,58.54400726,154.01,153.99,32.49390565]
[1748861139457,58.54400726,154.01,153.99,26.0]
[1748861139656,18.56400726,154.0,153.95,88.8]
[1748861139859,18.56400726,153.98,153.93,18.56400726]
[1748861140058,18.56400726,153.98,153.95,26.0]
[1748861140265,18.56400726,153.97,153.95,25.5]
[1748861140457,18.56400726,153.96,153.92,130.10300628]
[1748861140657,18.56400726,153.96,153.92,111.53899902]
[1748861141266,18.56400726,153.96,153.92,130.10300628]
[1748861141854,18.56400726,153.97,153.92,130.10300628]
[1748861142381,18.56400726,153.97,153.94,6.49603741]
[1748861146551,18.56400726,153.97,153.94,6.49603741]
[1748861147761,18.56400726,153.96,153.92,88.8]
[1748861147968,39.98,153.95,153.92,88.8]
[1748861148263,39.98,153.95,153.92,6.49662974]
[1748861151178,58.54400726,153.95,153.92,6.49662974]
[1748861152773,39.98,153.95,153.92,6.49662974]
[1748861154067,39.98,153.95,153.92,25.060637]
[1748861154383,39.98,153.95,153.93,18.56400726]
[1748861156889,39.98,153.98,153.96,6.49519355]
[1748861157371,18.56400726,153.99,153.95,6.49561545]
[1748861157569,39.98,153.98,153.95,6.49561545]
[1748861159664,18.56400726,153.99,153.95,6.49561545]
[1748861159865,39.96,153.98,153.95,6.49561545]
[1748861167187,39.96,153.98,153.95,25.05962271]
[1748861167770,20.13020726,154.0,153.96,18.56400726]
[1748861168014,20.13020726,154.0,153.95,22.73465409]
[1748861168015,39.96,153.99,153.97,18.56400726]
[1748861168173,39.96,154.0,153.98,18.56400726]
[1748861168698,50.4,154.01,153.98,18.56400726]
[1748861169104,50.4,154.01,153.99,6.49392817]
[1748861169815,68.96400726,154.01,153.95,88.8]
[1748861170044,18.56400726,153.99,153.95,88.8]
[1748861170227,58.52400726,153.98,153.95,88.8]
[1748861171080,58.52400726,153.98,153.96,6.4951198]
[1748861171589,39.96,153.98,153.96,6.4951198]
[1748861172297,39.96,153.98,153.95,6.49561545]
[1748861173786,39.96,153.98,153.95,25.05962271]
[1748861174107,39.96,153.98,153.95,6.49561545]
[1748861174895,39.96,153.98,153.95,25.05962271]
[1748861178833,28.98400726,153.99,153.95,25.05962271]
[1748861179134,39.96,153.98,153.95,25.05962271]
[1748861181207,39.96,153.98,153.95,6.49561545]
[1748861185234,39.96,153.98,153.96,11.87646076]
[1748861185616,39.96,153.98,153.95,18.37207621]
[1748861190035,51.83646076,153.98,153.95,6.49561545]
[1748861190237,51.83646076,153.98,153.94,121.29585581]
[1748861190535,51.83646076,153.98,153.93,11.87646076]
[1748861190536,11.87646076,153.97,153.93,6.49625758]
[1748861191814,11.87646076,153.97,153.93,18.37271834]
[1748861196648,51.83646076,153.98,153.93,18.37271834]
[1748861202152,51.83646076,153.98,153.94,11.87646076]
[1748861204324,51.83646076,153.98,153.95,6.49561545]
[1748861208236,10.4,153.97,153.95,6.49561545]
[1748861209739,10.4,153.97,153.96,11.87646076]
[1748861210731,10.4,154.01,153.96,11.87646076]
[1748861210936,50.32,154.01,154.0,11.87646076]
[1748861211548,39.92,154.02,154.0,11.87646076]
[1748861211752,39.92,154.02,154.01,6.49308486]
[1748861211953,11.9529,154.03,154.01,6.49308486]
[1748861212158,11.87646076,154.02,153.98,26.0]
[1748861212341,11.87646076,154.01,153.98,26.0]
[1748861212547,39.92,154.0,153.98,26.0]
[1748861212744,39.92,154.0,153.99,6.49385546]
[1748861213336,39.92,154.0,153.98,6.4941733]
[1748861216479,39.92,154.0,153.98,11.87646076]
[1748861216975,39.92,154.0,153.99,11.87646076]
[1748861218155,39.92,154.0,153.98,11.87646076]
[1748861218353,39.92,154.01,153.98,11.87646076]
[1748861218665,39.92,154.01,153.99,6.49392817]
[1748861220471,39.92,154.01,153.99,18.37038893]
[1748861221057,10.4,154.03,154.0,11.87646076]
[1748861221387,10.4,154.03,154.02,11.87646076]
[1748861221556,11.54635435,154.06,154.02,100.67646076]
[1748861221750,51.44635435,154.06,154.05,11.87646076]
[1748861221960,11.54635435,154.06,154.05,11.87646076]
[1748861222963,11.54635435,154.06,154.05,18.36785965]
[1748861223155,10.4,154.08,154.05,18.36785965]
[1748861223362,39.9,154.07,154.05,6.49139889]
[1748861223857,50.3,154.08,154.05,6.49139889]
[1748861224483,10.4,154.08,154.07,11.87646076]
[1748861224700,39.9,154.09,154.07,11.87646076]
[1748861224988,0.7522683,154.1,154.08,11.87646076]
[1748861225183,0.7522683,154.1,154.09,18.52285471]
[1748861225765,0.7522683,154.1,154.08,18.52285471]
[1748861226175,0.7522683,154.1,154.06,18.52285471]
[1748861226682,0.7522683,154.1,154.07,18.52285471]
[1748861227065,0.7522683,154.1,154.06,25.01371109]
[1748861227274,7.24165426,154.1,154.06,18.52285471]
[1748861227478,18.52285471,154.08,154.04,121.2916727]
[1748861227675,39.9,154.07,154.04,121.2916727]
[1748861228199,39.9,154.07,154.04,32.4916727]
[1748861229969,39.9,154.07,154.05,18.52285471]
[1748861230580,39.9,154.07,154.04,51.01452741]
[1748861231183,39.88,154.06,154.04,51.01452741]
[1748861231370,39.88,154.06,154.05,18.52285471]
[1748861233984,39.88,154.06,154.05,25.0142536]
[1748861237299,39.88,154.06,154.05,18.52285471]
[1748861238173,39.88,154.06,154.05,25.0142536]
[1748861240306,39.88,154.06,154.05,18.52285471]
[1748861240876,68.78285471,154.06,154.02,88.8]
[1748861241210,50.26,154.06,154.03,18.52285471]
[1748861241417,50.26,154.06,154.04,18.52285471]
[1748861242902,50.26,154.06,154.03,25.01468542]
[1748861248912,50.26,154.06,154.04,18.52285471]
[1748861249286,50.26,154.06,154.04,25.01433601]
[1748861251685,50.26,154.06,154.03,18.52285471]
[1748861252906,50.26,154.06,154.04,6.4918203]
[1748861253405,50.26,154.06,154.04,25.01467501]
[1748861253622,50.26,154.06,154.05,18.52285471]
[1748861254421,50.26,154.06,154.03,6.49224177]
[1748861254711,18.52285471,154.05,154.0,18.52285471]
[1748861254884,58.38285471,154.04,153.99,44.52285471]
[1748861255208,18.52285471,154.03,153.98,88.8]
[1748861255412,39.86,154.02,153.99,6.49392817]
[1748861256023,39.86,154.02,153.99,25.01678288]
[1748861257008,39.86,154.02,154.0,18.52285471]
[1748861257304,39.86,154.03,154.01,18.52285471]
[1748861259898,39.86,154.03,154.02,6.49266329]
[1748861260410,39.86,154.05,154.02,25.015518]
[1748861260598,39.86,154.05,154.03,18.52285471]
[1748861262095,39.86,154.05,154.04,6.4918203]
[1748861262291,11.9154,154.06,154.04,6.4918203]
[1748861262639,39.86,154.05,154.04,6.4918203]
[1748861264303,39.86,154.05,154.03,6.49224177]
[1748861266803,11.9154,154.06,154.03,6.49224177]
[1748861267007,39.86,154.05,154.03,6.49224177]
[1748861268723,10.38,154.06,154.04,18.52285471]
[1748861268895,50.24,154.06,154.04,18.52285471]
[1748861269218,10.38,154.06,154.04,18.52285471]
[1748861269428,39.86,154.07,154.04,18.52285471]
[1748861269429,18.64964886,154.09,154.04,18.52285471]
[1748861269593,50.24,154.08,154.05,18.52285471]
[1748861270804,50.24,154.08,154.04,18.52285471]
[1748861273696,50.24,154.08,154.05,6.49139889]
[1748861274109,68.76285471,154.08,154.05,6.49139889]
[1748861275529,68.76285471,154.08,154.04,25.01467501]
[1748861277431,39.84,154.07,154.05,18.52285471]
[1748861278927,39.84,154.07,154.04,41.24422577]
[1748861279125,58.36285471,154.07,154.04,6.4918203]
[1748861279334,18.52285471,154.05,154.02,6.49266329]
[1748861279510,18.52285471,154.03,153.98,34.75770088]
[1748861279835,18.52285471,154.02,153.99,6.49392817]
[1748861280010,18.52285471,154.01,153.99,6.49392817]
[1748861280222,18.52285471,154.0,153.92,22.90513504]
[1748861280415,18.52285471,153.97,153.93,25.01931413]
[1748861280729,39.84,153.97,153.94,26.0]
[1748861281509,39.84,153.97,153.95,6.49561545]
[1748861281709,58.36285471,153.97,153.95,6.49561545]
[1748861282928,39.84,153.97,153.95,6.49561545]
[1748861283640,58.36285471,153.97,153.95,6.49561545]
[1748861285407,58.36285471,153.97,153.94,26.0]
[1748861285612,18.52285471,153.96,153.94,26.0]
[1748861286137,39.84,153.97,153.94,32.4959196]
[1748861286329,58.36285471,153.97,153.94,32.4959196]
[1748861288142,18.52285471,153.95,153.9,25.0205805]
[1748861288343,58.38285471,153.94,153.91,26.0]
[1748861288521,58.36285471,153.94,153.91,26.0]
[1748861289525,39.84,153.94,153.92,6.49688149]
[1748861289914,39.84,153.94,153.92,25.0197362]
[1748861290415,10.38,153.98,153.94,26.0]
[1748861290630,10.38,153.98,153.97,18.52285471]
[1748861291523,10.38,153.98,153.97,25.01762641]
[1748861293148,10.38,153.98,153.97,6.4947717]
[1748861294223,10.38,153.98,153.97,18.52285471]
[1748861295422,39.86,154.0,153.97,18.52285471]
[1748861295622,39.86,154.0,153.99,18.52285471]
[1748861296135,39.86,154.0,153.99,25.01678288]
[1748861296646,10.36,154.02,153.99,41.25160332]
[1748861296826,10.36,154.02,154.0,18.52285471]
[1748861297427,10.36,154.02,154.01,18.52285471]
[1748861297626,10.36,154.02,154.0,18.52285471]
[1748861298022,10.36,154.02,153.99,25.01678288]
[1748861299136,10.36,154.02,154.0,18.52285471]
[1748861299853,50.2,154.02,154.0,18.52285471]
[1748861300346,50.2,154.02,154.0,25.01612592]
[1748861301746,10.36,154.02,154.01,18.52285471]
[1748861302526,10.36,154.02,154.01,25.01593957]
[1748861306339,51.18409078,154.04,154.01,25.01593957]
[1748861306536,11.34409078,154.04,154.02,18.52285471]
[1748861306847,51.18409078,154.04,154.03,6.49224177]
[1748861307633,18.64964886,154.03,154.0,88.8]
[1748861307845,37.17250357,154.03,154.0,88.8]
[1748861308832,37.17250357,154.03,154.0,95.29342625]
[1748861309155,51.18409078,154.04,154.01,18.52285471]
[1748861309940,10.36,154.06,154.03,18.52285471]
[1748861310259,50.2,154.06,154.04,18.52285471]
[1748861310431,10.36,154.06,154.04,18.52285471]
[1748861310627,10.36,154.06,154.02,6.49266329]
[1748861310832,10.36,154.06,154.04,18.52285471]
[1748861311049,28.88285471,154.06,154.02,25.015518]
[1748861311447,10.36,154.06,154.03,18.52285471]
[1748861311963,50.2,154.06,154.03,18.52285471]
[1748861312150,50.2,154.06,154.03,25.01487336]
[1748861313232,50.2,154.06,154.02,6.49266329]
[1748861313434,50.2,154.06,154.02,25.015518]
[1748861314478,18.52285471,154.04,153.97,16.2359159]
[1748861314756,39.84,154.03,154.0,18.52285471]
[1748861315528,39.84,154.03,154.01,6.49308486]
[1748861315733,28.88285471,154.06,154.01,25.01593957]
[1748861315936,39.82,154.05,154.01,25.01593957]
[1748861317050,39.82,154.05,154.02,18.52285471]
[1748861317252,10.36,154.06,154.02,18.52285471]
[1748861317560,39.82,154.05,154.02,18.52285471]
[1748861317963,39.82,154.05,154.02,25.01531585]
[1748861318558,39.82,154.05,154.02,6.49246114]
[1748861319161,39.82,154.05,154.02,25.01531585]
[1748861320356,39.82,154.05,154.02,6.49246114]
[1748861320549,58.34285471,154.05,154.02,6.49246114]
[1748861321747,58.34285471,154.05,154.01,6.49308486]
[1748861321956,64.83430431,154.05,154.01,6.49308486]
[1748861322792,18.52285471,154.03,154.0,88.8]
[1748861322964,58.34285471,154.02,154.0,88.8]
[1748861323967,18.64964886,154.01,154.0,88.8]
[1748861324279,37.17250357,154.01,154.0,88.8]
[1748861324567,18.64964886,154.01,154.0,88.8]
[1748861324751,58.34285471,154.02,154.0,88.8]
[1748861325767,58.34285471,154.02,153.99,6.49385417]
[1748861325969,58.34285471,154.02,153.98,51.01704322]
[1748861328575,39.82,154.02,153.99,18.52285471]
[1748861329269,58.34285471,154.02,153.98,51.01704322]
[1748861329460,18.52285471,154.01,153.98,6.49418851]
[1748861329657,39.82,154.0,153.98,6.49418851]
[1748861329973,39.82,154.0,153.97,25.01761651]
[1748861330195,39.82,154.0,153.98,18.52285471]
[1748861330568,39.82,154.0,153.99,18.52285471]
[1748861330760,39.82,154.02,153.99,18.52285471]
[1748861330963,39.82,154.03,154.01,18.52285471]
[1748861332557,39.82,154.04,154.02,6.49266329]
[1748861333080,39.82,154.04,154.01,25.0157817]
[1748861333286,39.82,154.04,154.01,6.49292699]
[1748861333653,39.82,154.03,153.98,6.49434991]
[1748861333862,58.34285471,154.03,153.98,25.01720462]
[1748861334077,18.52285471,154.02,153.98,25.01720462]
[1748861334880,28.86285471,154.02,153.98,25.01720462]
[1748861335280,28.86285471,154.02,153.98,6.49434991]
[1748861336057,18.52285471,154.01,153.98,6.49434991]
[1748861336672,18.52285471,154.01,153.97,26.0]
[1748861336673,39.82,154.0,153.97,26.0]
[1748861336979,39.82,154.0,153.96,51.01785219]
[1748861337727,39.82,154.0,153.98,18.52285471]
[1748861339074,39.82,154.0,153.99,6.49392817]
[1748861339395,39.82,154.0,153.98,6.49415679]
[1748861341085,39.82,154.0,153.98,25.0170115]
[1748861343697,39.82,154.0,153.98,6.49415679]
[1748861343879,39.82,154.0,153.96,51.01768188]
[1748861344077,58.34285471,154.0,153.93,16.24074565]
[1748861344395,18.52285471,153.97,153.94,6.49603741]
[1748861344599,58.34285471,153.97,153.94,6.49603741]
[1748861344972,18.52285471,153.96,153.93,6.49637692]
[1748861345179,18.52285471,153.95,153.92,6.49674374]
[1748861345375,39.82,153.94,153.92,6.49674374]
[1748861345786,39.82,153.94,153.91,113.82003218]
[1748861345983,39.82,153.94,153.91,95.29717747]
[1748861347294,39.82,153.94,153.91,113.82003218]
[1748861347497,10.34,153.97,153.94,6.49603741]
[1748861347712,10.34,153.97,153.96,18.52285471]
[1748861348003,10.34,154.01,153.96,18.52285471]
[1748861348177,39.82,154.0,153.99,18.52285471]
[1748861348574,10.34,154.01,153.99,18.52285471]
[1748861349693,10.34,154.01,153.98,25.01698541]
[1748861352582,28.86285471,154.01,153.97,25.01762641]
[1748861352783,10.34,154.01,153.98,18.52285471]
[1748861353721,50.16,154.01,153.98,18.52285471]
[1748861354588,50.16,154.01,153.98,25.01702463]
[1748861359023,50.16,154.01,153.99,18.52285471]
[1748861360028,68.68285471,154.01,153.96,114.8]
[1748861360319,18.52285471,153.99,153.96,114.8]
[1748861360524,18.52285471,154.0,153.96,114.8]
[1748861361095,18.52285471,154.0,153.96,121.29509631]
[1748861361695,18.52285471,153.97,153.92,18.52285471]
[1748861361898,58.34285471,153.97,153.93,18.52285471]
[1748861362712,58.34285471,153.97,153.94,6.49603741]
[1748861363028,58.34285471,153.97,153.93,25.01921658]
[1748861365402,58.34285471,153.97,153.93,6.49636187]
[1748861366325,58.34285471,153.97,153.93,25.01921658]
[1748861366527,20.12565471,154.0,153.96,18.52285471]
[1748861366705,39.82,153.99,153.97,6.4947717]
[1748861367950,10.34,154.01,153.98,18.52285471]
[1748861368241,50.16,154.01,153.99,18.52285471]
[1748861368411,50.16,154.01,153.97,6.4947717]
[1748861368412,10.34,154.01,154.0,18.52285471]
[1748861368803,10.34,154.01,154.0,6.49350649]
[1748861369014,10.34,154.01,153.99,6.49375503]
[1748861369607,10.34,154.01,153.98,51.01705781]
[1748861373221,10.34,154.01,153.99,18.52285471]
[1748861374534,10.34,154.01,153.99,25.01661765]
[1748861377848,10.34,154.01,153.99,6.49376294]
[1748861378550,10.34,154.01,153.98,51.01703647]
[1748861378845,28.86285471,154.01,153.98,32.49418176]
[1748861379255,10.34,154.01,154.0,18.52285471]
[1748861379631,10.34,154.05,154.0,18.52285471]
[1748861379828,10.34,154.05,154.04,6.4918203]
[1748861380033,10.34,154.05,154.04,25.01467501]
[1748861380233,10.34,154.05,154.03,25.01492696]
[1748861380448,50.76635368,154.06,154.03,25.01492696]
[1748861382819,50.76635368,154.06,154.02,25.015518]
[1748861383226,10.96635368,154.06,154.03,25.01484003]
[1748861383447,50.76635368,154.06,154.03,25.01484003]
[1748861384354,50.76635368,154.06,154.03,6.49198532]
[1748861386048,10.96635368,154.06,154.03,6.49198532]
[1748861386250,50.76635368,154.06,154.03,6.49198532]
[1748861389440,10.96635368,154.06,154.03,6.49198532]
[1748861389761,50.76635368,154.06,154.03,6.49198532]
[1748861393832,37.17250357,154.05,154.01,114.8]
[1748861394041,18.52285471,154.03,154.01,88.8]
[1748861394248,58.32285471,154.03,154.01,88.8]
[1748861395063,39.8,154.03,154.01,95.29290113]
[1748861395449,58.32285471,154.03,154.01,88.8]
[1748861395955,18.52285471,154.02,154.01,88.8]
[1748861396746,18.52285471,154.02,153.99,6.49369877]
[1748861396941,39.8,154.01,153.99,6.49369877]
[1748861397140,39.8,154.01,153.98,32.49415927]
[1748861399569,39.8,154.01,153.98,51.01701398]
[1748861400941,39.8,154.01,153.98,32.49415927]
[1748861401445,39.8,154.01,153.98,6.49415927]
[1748861402261,58.32285471,154.01,153.97,88.8]
[1748861402481,58.32285471,154.01,153.96,44.52285471]
[1748861402686,58.32285471,154.01,153.97,18.52285471]
[1748861403190,58.32285471,154.01,153.96,32.49496251]
[1748861403670,58.32285471,154.01,153.97,25.01732173]
[1748861405159,58.32285471,154.01,153.96,26.0]
[1748861405160,18.52285471,153.98,153.94,26.0]
[1748861405365,39.8,153.98,153.95,18.52285471]
[1748861405586,39.8,153.98,153.96,6.49519355]
[1748861407262,39.8,153.98,153.97,18.52285471]
[1748861407461,39.8,154.0,153.97,18.52285471]
[1748861407657,39.8,154.0,153.98,6.49434991]
[1748861408572,58.32285471,154.0,153.97,6.49461618]
[1748861410080,58.32285471,154.0,153.96,6.49519355]
[1748861410592,58.32285471,154.0,153.96,25.01804826]
[1748861412289,58.32285471,154.0,153.96,6.49519355]
[1748861412668,18.52285471,153.99,153.95,6.49542943]
[1748861415988,18.52285471,153.99,153.95,25.01828414]
[1748861416902,18.52285471,154.0,153.96,18.52285471]
[1748861417086,39.8,154.0,153.96,18.52285471]
[1748861417493,58.32285471,154.0,153.96,18.52285471]
[1748861418479,58.32285471,154.0,153.97,6.4947717]
[1748861419184,18.52285471,153.99,153.95,6.49561545]
[1748861419886,18.52285471,153.98,153.95,6.49561545]
[1748861421509,25.14359532,153.99,153.94,32.49589963]
[1748861421510,18.52285471,153.97,153.94,32.49589963]
[1748861421719,58.32285471,153.97,153.94,32.49589963]
[1748861422086,18.52285471,153.95,153.93,6.49626598]
[1748861422906,18.52285471,153.96,153.92,6.49688149]
[1748861424886,1.5518,153.98,153.94,18.52285471]
[1748861425215,59.87465471,153.98,153.94,18.52285471]
[1748861425914,59.87465471,153.98,153.95,6.49561545]
[1748861428313,59.87465471,153.98,153.94,25.01870149]
[1748861428487,18.52285471,153.97,153.94,6.49584678]
[1748861432908,18.52285471,153.97,153.93,95.29629692]
[1748861433210,18.52285471,153.96,153.93,95.29629692]
[1748861433406,37.17250357,153.97,153.93,95.29629692]
[1748861434617,1.5518,153.98,153.94,18.52285471]
[1748861434791,1.5518,153.98,153.93,121.29629692]
[1748861434792,39.8,153.98,153.95,18.52285471]
[1748861434990,39.8,153.99,153.95,18.52285471]
[1748861435420,18.52285471,153.98,153.93,137.53744549]
[1748861435717,18.52285471,153.98,153.94,18.52285471]
[1748861436121,58.32285471,153.99,153.94,18.52285471]
[1748861436591,39.8,153.98,153.95,6.49561545]
[1748861436990,18.52285471,153.99,153.95,6.49561545]
[1748861437293,39.8,153.98,153.95,6.49561545]
[1748861437492,39.8,153.98,153.95,25.01847016]
[1748861439515,39.8,153.98,153.95,6.49561545]
[1748861440597,39.8,153.98,153.95,25.01847016]
[1748861443119,39.8,153.98,153.94,25.01889212]
[1748861444011,39.8,153.98,153.94,113.81889212]
[1748861446121,39.8,153.98,153.94,95.29603741]
[1748861446432,58.32285471,153.98,153.94,95.29603741]
[1748861449930,58.32285471,153.98,153.94,6.49603741]
[1748861451103,64.81722946,153.98,153.93,121.29626379]
[1748861451303,64.81722946,153.98,153.93,139.8191185]
[1748861453453,39.8,153.98,153.93,139.8191185]
[1748861453735,58.32285471,153.98,153.93,139.8191185]
[1748861455900,58.32285471,153.98,153.93,51.0191185]
[1748861456304,58.32285471,153.98,153.94,18.52285471]